Cogmind - Beta 13 @@@ ROGUE MODE // 2024.04.08 @ 07:10:54 Player: glitchbuggaming Result: Destroyed by H-55 Commando with Gauss Rifle Performance ------------- Evolutions (1) 500 Regions Visited (6) 1200 Robots Destroyed (39) 195 Value Destroyed (948) 948 Prototype IDs (23) 460 Alien Tech Used (0) 0 Bonus (406) 406 TOTAL SCORE: 3709 Bonus ------- High Alert Combat Kills 54 Follower Combat Kills 52 Aligned with FarCom 300 Cogmind --------- Core Integrity 0/400 Matter 17/300 Energy 100/100 System Corruption 3% Temperature Cool (0) Movement Core (200) Ox3 Location -8/Mines Parts ------- > --- POWER (1) -------- (None) > --- PROPULSION (3) --- (None) > --- UTILITY (3) ------ Medium Storage Unit > --- WEAPON (2) ------- (None) > --- INVENTORY (10) --- Medium Storage Unit Improved Light Armor Plating Improved Light Armor Plating Field Laser Latent Energy Streamer Light Assault Rifle Light Assault Rifle Gauss Rifle Mini Grenade Launcher Mining Laser Peak State ------------ > --- POWER ------------ Light Nuclear Core > --- PROPULSION ------- Light Treads Aluminum Leg > --- UTILITY ---------- Medium Storage Unit Improved Light Armor Plating Improved Light Armor Plating > --- WEAPON ----------- Latent Energy Streamer Mini Grenade Launcher > --- INVENTORY -------- Light Ion Engine Medium Storage Unit Improved Light Armor Plating Improved Light Armor Plating Field Laser Field Laser Light Assault Rifle Light Assault Rifle Grenade Launcher Mining Laser [Rating: 25] Favorites ----------- Power Light Ion Engine Engine Light Ion Engine Power Core Light Nuclear Core Propulsion Light Treads Treads Light Treads Leg Aluminum Leg Utility Improved Light Armor Plating Storage Medium Storage Unit Protection Improved Light Armor Plating Weapon Mini Grenade Launcher Energy Gun Field Laser Energy Cannon Latent Energy Streamer Ballistic Gun Assault Rifle Launcher Mini Grenade Launcher Special Weapon Mining Laser Build | -11 -10 -10 -9 -9 -9 -8 ------- Run | Yrd Mat Min Mat Min Exi Min Slots Evolved 2 | . . . 2 . . . Power . | . . . . . . . Propulsion 1 | . . . 1 . . . Utility 1 | . . . 1 . . . Weapon . | . . . . . . . Parts Attached 33 | 5 5 . 10 7 1 5 Power 6 | 1 1 . 1 1 . 2 Engine 5 | 1 1 . 1 1 . 1 Core 1 | . . . . . . 1 Reactor . | . . . . . . . Propulsion 7 | 2 . . 3 2 . . Treads 4 | . . . 3 1 . . Leg 3 | 2 . . . 1 . . Wheel . | . . . . . . . Hover . | . . . . . . . Flight . | . . . . . . . Utility 6 | 1 2 . 2 . . 1 Device . | . . . . . . . Storage 2 | 1 1 . . . . . Processor . | . . . . . . . Hackware . | . . . . . . . Protection 4 | . 1 . 2 . . 1 Artifact . | . . . . . . . Weapon 14 | 1 2 . 4 4 1 2 Energy Gun 5 | . 1 . 2 2 . . Energy Cannon 1 | . . . . . 1 . Ballistic Gun 2 | 1 . . . . . 1 Ballistic Cannon . | . . . . . . . Launcher 5 | . 1 . 2 1 . 1 Special Weapon 1 | . . . . 1 . . Impact Weapon . | . . . . . . . Slashing Weapon . | . . . . . . . Piercing Weapon . | . . . . . . . Special Melee Weapon . | . . . . . . . Unidentified Prototypes . | . . . . . . . Parts Lost 17 | . . 1 8 1 . 7 Power 4 | . . 1 1 . . 2 Propulsion 6 | . . . 3 1 . 2 Utility 3 | . . . 1 . . 2 Weapon 4 | . . . 3 . . 1 Highest Loss Streak 6 | . . 1 4 1 . 6 To Critical Strikes . | . . . . . . . Average Slot Usage (%) 80 | . 96 91 59 78 88 79 Engine 8 | . 14 6 9 7 11 6 Treads 10 | . . . 14 10 11 10 Leg 9 | . 28 28 1 7 11 9 Storage 11 | . 14 14 11 11 11 11 Protection 19 | . 10 14 4 22 22 20 Energy Gun 4 | . 3 . 3 11 . . Energy Cannon 2 | . . . . . 1 9 Launcher 9 | . 10 14 13 5 11 10 Special Weapon 4 | . . . . 3 9 . Naked Turns . | . . . . . . . Heaviest Build 32 | 12 19 19 25 25 30 32 Greatest Support 40 | 20 20 20 40 20 20 20 Greatest Overweight (x) 7 | . . . 1 7 1 5 Average Overweight (x) . | . . . . . 1 1 Largest Inventory Capacity 10 | 8 10 10 10 10 10 10 Average Capacity 9 | 7 8 10 10 10 10 10 Most Carried 10 | 5 7 7 10 10 10 10 Average Carried 8 | 3 5 6 7 9 9 9 Final Capacity 10 | 8 10 10 10 10 10 10 Final Carried 10 | 5 6 7 10 9 10 10 Class Distribution -------------------- 100% | Mutant Dominant Class ---------------- Mutant | -10/Materials Mutant | -10/Mines Mutant | -9/Materials Mutant | -9/Mines Mutant | -9/Exiles Mutant | -8/Mines Resources | -11 -10 -10 -9 -9 -9 -8 ----------- Run | Yrd Mat Min Mat Min Exi Min Matter Collected 718 | 197 . 78 122 254 . 67 Remotely . | . . . . . . . Salvage Created 636 | . . 95 415 46 . 80 Parts 50 | . . 7 32 4 . 7 Haulers Intercepted . | . . . . . . . Recyclers Shooed 2 | . . . 2 . . . Parts Field Recycled . | . . . . . . . Retrieved Matter . | . . . . . . . Parts Self-Destructed . | . . . . . . . Prevented . | . . . . . . . Kills | -11 -10 -10 -9 -9 -9 -8 ------- Run | Yrd Mat Min Mat Min Exi Min Combat Hostiles Destroyed 35 | . . 5 19 3 . 8 Guns 6 | . . . 3 3 . . AOE 29 | . . 5 16 . . 8 Classes Destroyed 7 | . . 2 4 . . 1 Builder 3 | . . . 3 . . . Watcher 1 | . . . 1 . . . Swarmer 17 | . . 3 7 3 . 4 Grunt 14 | . . 2 10 . . 2 Brawler 2 | . . . 1 . . 1 Sentry 1 | . . . 1 . . . Hunter 1 | . . . . . . 1 Best Kill Streak 7 | . . 3 7 3 . 4 Combat Bots Only 7 | . . 3 7 3 . 4 Max Kills in Single Turn 3 | . . 3 3 1 . 3 Gunslinging . | . . . . . . . Exploded 3 | . . 3 3 . . 3 Melee . | . . . . . . . Uniques/NPCs Destroyed . | . . . . . . . Combat | -11 -10 -10 -9 -9 -9 -8 -------- Run | Yrd Mat Min Mat Min Exi Min Hostile Shots Fired 211 | . 10 14 100 30 . 57 Missed 66 | . 3 6 38 7 . 12 Damage Taken 2195 | . 67 147 951 180 . 850 Core 444 | . 7 25 126 53 . 233 Absorbed by Shields . | . . . . . . . Redirected to Shielding 51 | . 11 19 21 . . . Core Remaining (%) 93 | 100 . 87 . . . . Volleys Fired 57 | . . 4 29 11 . 13 Largest 2 | . . 2 2 2 . 2 Hottest 126 | . . 50 70 126 . 60 Shots Fired 86 | . . 8 40 20 . 18 Gun 36 | . . 4 14 18 . . Cannon 1 | . . . . . . 1 Launcher 49 | . . 4 26 2 . 17 Special . | . . . . . . . Kinetic 12 | . . 4 8 . . . Thermal 24 | . . . 6 18 . . Explosive 49 | . . 4 26 2 . 17 Electromagnetic 1 | . . . . . . 1 Robot Hit Streak 14 | . . 1 11 4 . 14 Robot Miss Streak 4 | . . 2 4 3 . 1 Penetration Max . | . . . . . . . Secondary Targets 1 | . . . 1 . . . Max Gunslinging Chain 1 | . . . 1 . . . Shots Hit Robots 50 | . . 2 24 9 . 15 Core Hits 54 | . . 6 34 4 . 10 Critical Kills . | . . . . . . . Critical Parts Destroyed . | . . . . . . . Critical Strikes . | . . . . . . . Melee Attacks . | . . . . . . . Impact . | . . . . . . . Slashing . | . . . . . . . Piercing . | . . . . . . . Sneak Attacks . | . . . . . . . Combat Hostiles . | . . . . . . . Follow-up Attacks . | . . . . . . . Damage Inflicted 3374 | . . 286 1785 191 . 1112 Guns 223 | . . . 70 153 . . Cannons . | . . . . . . . Explosions 3151 | . . 286 1715 38 . 1112 Melee . | . . . . . . . Ramming . | . . . . . . . Kinetic 58 | . . . 58 . . . Thermal 305 | . . . 12 153 . 140 Explosive 3011 | . . 286 1715 38 . 972 Electromagnetic . | . . . . . . . Impact . | . . . . . . . Slashing . | . . . . . . . Piercing . | . . . . . . . Highest Corruption 3 | . . . . . . 3 Average Corruption 3 | . . . . . . 3 Corruption Purged . | . . . . . . . Corruption Blocked . | . . . . . . . Effects 13 | . . . . . . 13 Message Errors 3 | . . . . . . 3 Matter Fused 4 | . . . . . . 4 Heat Flow Errors 2 | . . . . . . 2 Energy Discharges 1 | . . . . . . 1 Data Loss (minor) 2 | . . . . . . 2 Data Loss (major) 1 | . . . . . . 1 Overload Shots . | . . . . . . . Overflow Damage 226 | . . . 137 . . 89 Projectiles . | . . . . . . . Explosions 226 | . . . 137 . . 89 Melee . | . . . . . . . Knockbacks . | . . . . . . . Impact . | . . . . . . . Kinetic . | . . . . . . . Secondary . | . . . . . . . Self-Inflicted Damage 570 | . . 56 256 . . 258 Shots 21 | . . 3 9 . . 9 Rammed . | . . . . . . . Targets Rammed . | . . . . . . . Kicked . | . . . . . . . Crushed . | . . . . . . . Highest Temperature 357 | . . 6 18 357 . 231 Average Temperature 126 | . . 3 8 177 . 84 Received Heat Transfer 342 | . 30 33 261 . . 18 Siege Activations . | . . . . . . . Robots Corrupted . | . . . . . . . Combat Hostiles . | . . . . . . . Parts Fried . | . . . . . . . Impact Corruptions . | . . . . . . . Robots Melted . | . . . . . . . Combat Hostiles . | . . . . . . . Parts Melted . | . . . . . . . Heat Transferred 520 | . . . 37 333 . 150 Parts Sabotaged . | . . . . . . . Parts Stolen . | . . . . . . . Parts Stripped . | . . . . . . . Power Chain Reactions . | . . . . . . . Latent Energy Used 165 | . . . . . . 165 LE Corruption 3 | . . . . . . 3 Alert | -11 -10 -10 -9 -9 -9 -8 ------- Run | Yrd Mat Min Mat Min Exi Min Peak Influence 675 | . 15 154 675 180 . 245 Initial 180 | . . 5 59 180 . . Average 129 | . 1 119 407 82 . 70 Maximum Alert Level 2 | . . . 2 . . 1 Low Security (%) 82 | 100 100 100 7 100 . 92 Level 1 9 | . . . 41 . . 7 Level 2 8 | . . . 50 . . . Level 3 . | . . . . . . . Level 4 . | . . . . . . . Level 5 . | . . . . . . . High Security . | . . . . . . . Max Security . | . . . . . . . Squads Dispatched 3 | . . . 3 . . . Investigation 2 | . . . 2 . . . Extermination . | . . . . . . . Reinforcement 1 | . . . 1 . . . Assault . | . . . . . . . Garrison . | . . . . . . . Intercept . | . . . . . . . Searches Triggered . | . . . . . . . Construction Impeded 1 | . . . 1 . . . Haulers Reinforced . | . . . . . . . Active Scanning Responses . | . . . . . . . Cargo Convoy Interrupts . | . . . . . . . Stealth | -11 -10 -10 -9 -9 -9 -8 --------- Run | Yrd Mat Min Mat Min Exi Min Distress Signals 3 | . 1 . 2 . . . Communications Jammed . | . . . . . . . Distress Signals . | . . . . . . . Times Spotted 50 | . 7 5 25 4 . 9 Peak Tracking Total 7 | . 7 3 7 3 . 4 Tactical Retreats . | . . . . . . . Traps | -11 -10 -10 -9 -9 -9 -8 ------- Run | Yrd Mat Min Mat Min Exi Min Traps Triggered 1 | . . . 1 . . . Indirectly . | . . . . . . . Trap Hack Attempts . | . . . . . . . Triggered . | . . . . . . . Disarmed . | . . . . . . . Reprogrammed . | . . . . . . . Reused . | . . . . . . . Traps Extracted . | . . . . . . . Installed . | . . . . . . . Triggered . | . . . . . . . Machines | -11 -10 -10 -9 -9 -9 -8 ---------- Run | Yrd Mat Min Mat Min Exi Min Machines Disabled 7 | . . . 4 2 . 1 Max in Single Turn 1 | . . . 1 1 . 1 Machines Repaired . | . . . . . . . Machines Dismantled . | . . . . . . . Machines Sabotaged . | . . . . . . . Overloaded Fab Kills . | . . . . . . . Hacking | -11 -10 -10 -9 -9 -9 -8 --------- Run | Yrd Mat Min Mat Min Exi Min Machines Accessed 7 | . . . 2 . 5 . Terminals 2 | . . . 2 . . . Fabricators . | . . . . . . . Repair Stations . | . . . . . . . Recycling Units . | . . . . . . . Scanalyzers . | . . . . . . . Garrison Access . | . . . . . . . Total Hacks 43 | . . . 7 . 36 . Successful 38 | . . . 2 . 36 . Failed 5 | . . . 5 . . . Catastrophic 1 | . . . 1 . . . Database Lockouts . | . . . . . . . Manual 1 | . . . . . 1 . Terminals 7 | . . . 7 . . . Fabricators . | . . . . . . . Repair Stations . | . . . . . . . Recycling Units . | . . . . . . . Scanalyzers . | . . . . . . . Garrison Access . | . . . . . . . Terminal Hacks 38 | . . . 2 . 36 . Record 36 | . . . 1 . 35 . Assault Status 1 | . . . 1 . . . Derelict Proto ID Bank 1 | . . . . . 1 . Fabricator Hacks . | . . . . . . . Repair Station Hacks . | . . . . . . . Recycling Unit Hacks . | . . . . . . . Scanalyzer . | . . . . . . . Garrison Access Hacks . | . . . . . . . Unauthorized Hacks . | . . . . . . . Terminals . | . . . . . . . Fabricators . | . . . . . . . Repair Stations . | . . . . . . . Recycling Units . | . . . . . . . Scanalyzers . | . . . . . . . Garrison Access . | . . . . . . . Data Cores Recovered . | . . . . . . . Used . | . . . . . . . Hacking Detections 2 | . . . 2 . . . Full Trace Events 2 | . . . 2 . . . Feedback Events . | . . . . . . . Feedback Blocked . | . . . . . . . Robot Schematics Acquired . | . . . . . . . Robots Built . | . . . . . . . Authchips . | . . . . . . . Time . | . . . . . . . Total Robot Build Rating . | . . . . . . . Part Schematics Acquired . | . . . . . . . Parts Built . | . . . . . . . Authchips . | . . . . . . . Time . | . . . . . . . Total Part Build Rating . | . . . . . . . Parts Repaired . | . . . . . . . Time . | . . . . . . . Parts Recycled . | . . . . . . . Recycled Matter . | . . . . . . . Retrieved Matter . | . . . . . . . Retrieved Components . | . . . . . . . Parts Scanalyzed . | . . . . . . . Part Schematics Acquired . | . . . . . . . Parts Damaged . | . . . . . . . Bothacking | -11 -10 -10 -9 -9 -9 -8 ------------ Run | Yrd Mat Min Mat Min Exi Min Used RIF Installer . | . . . . . . . Robots Hacked . | . . . . . . . Non-combat . | . . . . . . . Combat . | . . . . . . . Robot Hacks Applied . | . . . . . . . Relay Couplers Released . | . . . . . . . Fabnet Peak Effective % . | . . . . . . . Robots Rewired . | . . . . . . . Allies Hacked . | . . . . . . . Hacks Repelled . | . . . . . . . Allies | -11 -10 -10 -9 -9 -9 -8 -------- Run | Yrd Mat Min Mat Min Exi Min Total Allies 1 | . . . . 1 . . Largest Group 1 | . . . . 1 . . Highest-Rated Group 31 | . . . . 31 . . Highest-Rated Ally 31 | . . . . 31 . . Total Orders . | . . . . . . . Ally Attacks 4 | . . . . 4 . . Total Damage 62 | . . . . 62 . . Kills 2 | . . . . 2 . . Allies Corrupted . | . . . . . . . Allies Melted . | . . . . . . . Intel | -11 -10 -10 -9 -9 -9 -8 ------- Run | Yrd Mat Min Mat Min Exi Min Robot Analysis Total . | . . . . . . . Derelict Logs Recovered 1 | . . . . 1 . . Drone Launches . | . . . . . . . Drone Recoveries . | . . . . . . . Exploration | -11 -10 -10 -9 -9 -9 -8 ------------- Run | Yrd Mat Min Mat Min Exi Min Turns Passed 4468 | 72 95 88 471 1311 1628 803 Spaces Moved 1908 | 52 68 63 215 542 678 290 Core 39 | 6 . . . 3 . 30 Treads 1662 | . . . 202 522 678 260 Legs 207 | 46 68 63 13 17 . . Wheels . | . . . . . . . Hover . | . . . . . . . Flight . | . . . . . . . Fastest Speed 50 | 50 120 120 120 160 240 160 Average Speed 214 | 111 120 120 167 225 240 231 Slowest Speed 400 | 120 120 120 240 400 240 300 Overloaded Moves . | . . . . . . . Propulsion Burnouts . | . . . . . . . Robots Hopped . | . . . . . . . Cave-ins Triggered . | . . . . . . . Exploration Rate (%) 43 | 4 18 13 23 86 92 66 Regions Visited 6 Branch Regions 4 Pre-discovered Areas 1 | . . . . . 1 . Known Exits Taken . | . . . . . . . Unknown Exits Taken 6 | 1 1 1 1 1 1 . Scrap Searched 3 | . . . . 3 . . Spaces Dug . | . . . . . . . Terrain Destroyed 350 | . . 30 153 12 . 155 Melee . | . . . . . . . Projectile . | . . . . . . . AOE 350 | . . 30 153 12 . 155 Terrain Rammed . | . . . . . . . Walls Destroyed . | . . . . . . . Machines Disabled . | . . . . . . . Actions | -11 -10 -10 -9 -9 -9 -8 --------- Run | Yrd Mat Min Mat Min Exi Min Total 2195 | 66 81 67 287 610 679 405 Wait 146 | . . . 13 41 . 92 Move 1902 | 51 67 62 214 541 677 290 Hop . | . . . . . . . Pick Up 40 | 10 6 1 15 6 1 1 Fast Attach 3 | . . . 2 1 . . Attach 18 | 5 2 . 6 3 . 2 Detach 2 | . . . . . . 2 Swap 12 | . 3 . 2 3 1 3 Drop 15 | . 3 . 6 4 . 2 Fire 57 | . . 4 29 11 . 13 Melee . | . . . . . . . Ram . | . . . . . . . Kick . | . . . . . . . Crush . | . . . . . . . Escape Stasis . | . . . . . . . Rewire . | . . . . . . . Trap . | . . . . . . . Miscellaneous . | . . . . . . . Route ------- -11/Scrapyard -10/Materials -10/Mines -9/Materials -9/Mines (discovered 3 exits: [*Mat x2] / *Exi) -9/Exiles (discovered 2 exits: [*Min x2]) -8/Mines History --------- Turn | Location | Event 2 | -11/Scrapyard | Discovered new exit (range 16) 73 | -11/Scrapyard | Entered Materials 157 | -10/Materials | Discovered new exit (range 9) 168 | -10/Materials | Entered Mines 192 | -10/Mines | Met a Derelict bent on vengeance 220 | -10/Mines | Discovered new exit (range 6) 256 | -10/Mines | Entered Materials 256 | -9/Materials | Evolved 2 slots: Propulsion x1, Utility x1 321 | -9/Materials | Destroyed 7 combat bots 324 | -9/Materials | Build established: Mutant 328 | -9/Materials | Lost 4 parts (2n1u1w) 570 | -9/Materials | Discovered new exit (range 9) 727 | -9/Materials | Entered Mines 840 | -9/Mines | Discovered new exit (range 11) 1551 | -9/Mines | Learned 2 Materials zone layouts 1556 | -9/Mines | Received a Mining Laser from a helpful Derelict 1983 | -9/Mines | Discovered new exit (range 10) 2026 | -9/Mines | Deemed a non-threat by the Exiles lab entrance 2029 | -9/Mines | Discovered new exit (range 5) 2038 | -9/Mines | Entered Exiles 2077 | -9/Exiles | Discovered new exit (range 15) 2113 | -9/Exiles | Met 8R-AWN 2149 | -9/Exiles | Met EX-HEX 2266 | -9/Exiles | Met EX-DEC 2286 | -9/Exiles | Learned location of Zion (-6) 2374 | -9/Exiles | Discovered new exit (range 14) 2560 | -9/Exiles | Visited The Gauntlet 2977 | -9/Exiles | Met EX-BIN 3037 | -9/Exiles | Aligned with FarCom system 3039 | -9/Exiles | Given EX-Vault access code 3166 | -9/Exiles | Opened EX-Vault 3392 | -9/Exiles | Found Latent Energy Streamer 3443 | -9/Exiles | Warned to stay clear of 0b10 Research branches 3666 | -9/Exiles | Left Exiles lab with Latent Energy Streamer 3666 | -9/Exiles | Entered Mines 3998 | -8/Mines | Core integrity fell below 50% 4431 | -8/Mines | Core integrity fell below 20% 4450 | -8/Mines | Lost 6 parts (1p2n2u1w) 4469 | -8/Mines | Destroyed by H-55 Commando with Gauss Rifle Last Messages --------------- 04379_ Penetrated by Slug. 04380_ The unstable cave ceiling collapses. 04381_ K-01 Serf collects debris. 04382_ Penetrated by Slug. 04382_ Aluminum Leg destroyed. 04383_ K-01 Serf collects debris. 04389_ Penetrated by Slug. 04391_ K-01 Serf collects debris. 04392_ Penetrated by Slug. 04392_ Grenade Launcher destroyed. 04395_ Slug penetrates Wall. 04404_ Lgt. Treads destroyed. 04409_ Slug penetrates Wall. 04416_ Penetrated by Slug. 04416_ Imp. Light Armor Plating destroyed. 04419_ Penetrated by Slug. 04419_ Imp. Light Armor Plating destroyed. 04422_ VEQ1L |LU765JY9V 04459_ T-07 Excavator is excavating. Map ----- +----------------------------------------------------+ | #?###### #??????????????????????## [= ##??? | | #???????# #???????????????????????# #???? | | ????????# #???????????????????????### #???? | | ?????????# #?????????????????????????# ####???? | | ?????????# #?????????????????????????#####??????? | | ?????????# #????????????????????????????????????? | | ?????????# #????????????????????????????????????? | | ?????????# #????????????????????????????????????? | | ?????????# #????????????????????????????????????? | | ?????????# #????????????????????????????????????? | | ?????????# #????????????????????????????????????? | | ?????????# #????????????????????????????????????? | | ?????????# #????????????????????????????????????? | | ?????????# #????????????????????????????????????? | | ?????????# #????????????????????????????????????? | | ??????#### ##???????????????????????????????????? | | ?????## ##??????????????????????????????????? | | ?????# #??????????????????????????????????? | | ?????# #??#####???????????????????????????? | | ?????## #### ####### #???????????????????? | | ??????###### ## #???????????????????? | | ???????????## ######?????????????????????? | | ???????????## ##??????????????????????????? | | ????????#### ##???????????????????????????? | | ????????# ######## #####???????????????? | | ?????# h @ t #????????????? | | ????# """ #????????????? | | ??? """ ###############????????????? | | ??#### """ ##??????????????????????????? | | ?????# ? ####???????????????????????????? | | ?????# ### ##??????????????????????????????? | | ??????? ##??#####???????????????????????????????? | | ???????#?????????????????????????????????????????? | | ?????????????????????????????????????????????????? | | | | | | | | | | | | | | | | | | | | | | | | | | | | | | | | | +----------------------------------------------------+ Best States ------------- Heat Dissipation 28 Energy Generation 14 Energy Capacity 250 Matter Stores 249 Matter Capacity 300 Sight Range 16 Terrain Scan Density 10 Armor Coverage 300 Weapon Shielding 33 Evasion (%) 55 Recoil Reduction 2 Item Schematics ----------------- None Robot Schematics ------------------ None Fabricated ------------ Nothing Alien Tech Used ----------------- None Achievements -------------- Let's See Who's Tougher Librarian Oops Remodeling Tourist Challenges ------------ None Game ------ Seed PulsePowerInsulator Manual? 0 Play Time 00:48:35 Cumulative 3.8 hours Start 2024.04.08 @ 06:05:29 End 2024.04.08 @ 07:10:54 Sessions 1 Manual Loads 0 Difficulty Rogue Special Mode None Game No. 7 Rogue 7 Adventurer 0 Explorer 0 Win Type - Total 0 Types 0/0/0/0/0/0/0/0/0 Lore% 8 Gallery% 6 Achievement% 9 Wizard Run 0 Options --------- Layout 0 ASCII 0 Keyboard 0 Movement Mouse Keybinds 0 Fullscreen 1 Font 24/Smallcaps Map View 76x50 Zoom Use 0% Tactical HUD 1 Map Filters NONE Filters NONE Steam 1 RUN: 16ecbf3e-6699-43cf-8b16-12f30d3c16cc